[Event "2026 European Womens Championship"]
[Site "Batumi, GE"]
[Date "2026.06.01"]
[Round "7"]
[White "Rudzinska, Michalina"]
[Black "Demirtas, Hafize"]
[Result "1-0"]
[Board "98"]
[TimeControl "5400+30"]
[WhiteFideId "1172883"]
[BlackFideId "6382070"]
[WhiteElo "2200"]
[BlackElo "1928"]
[WhiteTitle "WGM"]
[WhiteClock "0:10:05"]
[BlackClock "0:00:53"]
[Variant "Standard"]

1. e4 {[%clk 1:30:53]}  c6 {[%clk 1:29:36]} 2. d4 {[%clk 1:31:15]}  d5 {[%clk 1:29:54]} 3. e5 {[%clk 1:31:25]}  Bf5 {[%clk 1:30:11]}
4. Nf3 {[%clk 1:31:23]}  e6 {[%clk 1:30:30]} 5. Be2 {[%clk 1:31:47]}  Nd7 {[%clk 1:30:48]} 6. O-O {[%clk 1:31:43]}  a5 {[%clk 1:31:07]}
7. Nc3 {[%clk 1:31:17]}  a4 {[%clk 1:31:25]} 8. Bd2 {[%clk 1:31:13]}  a3 {[%clk 1:31:48]} 9. b3 {[%clk 1:31:17]}  h6 {[%clk 1:32:11]}
10. Rc1 {[%clk 1:28:36]}  Ne7 {[%clk 1:29:39]} 11. Nb1 {[%clk 1:17:58]}  Ng6 {[%clk 1:23:25]} 12. c4 {[%clk 1:12:08]}  Be7 {[%clk 1:15:14]}
13. cxd5 {[%clk 1:09:26]}  cxd5 {[%clk 1:12:20]} 14. Nc3 {[%clk 1:08:50]}  O-O {[%clk 1:03:44]} 15. Ne1 {[%clk 1:06:52]}  Nh4 {[%clk 0:57:30]}
16. g3 {[%clk 1:02:21]}  Bh3 {[%clk 0:57:20]} 17. gxh4 {[%clk 1:02:43]}  Bxf1 {[%clk 0:57:32]} 18. Bxf1 {[%clk 1:02:40]}  Qb6 {[%clk 0:49:45]}
19. Qg4 {[%clk 0:58:28]}  Kh8 {[%clk 0:34:13]} 20. Na4 {[%clk 0:53:34]}  Qd8 {[%clk 0:27:27]} 21. Rc3 {[%clk 0:52:28]}  Rg8 {[%clk 0:24:33]}
22. Rf3 {[%clk 0:47:49]}  f5 {[%clk 0:21:28]} 23. Qh5 {[%clk 0:43:51]}  Qe8 {[%clk 0:18:09]} 24. Qxe8 {[%clk 0:44:12]}  Raxe8 {[%clk 0:16:28]}
25. Bb5 {[%clk 0:43:21]}  Rd8 {[%clk 0:14:28]} 26. h5 {[%clk 0:38:40]}  g5 {[%clk 0:13:54]} 27. hxg6 {[%clk 0:38:54]}  Rxg6+ {[%clk 0:13:47]}
28. Kf1 {[%clk 0:39:00]}  Nb8 {[%clk 0:12:24]} 29. Nd3 {[%clk 0:37:05]}  Bg5 {[%clk 0:09:45]} 30. Bb4 {[%clk 0:36:06]}  Rc8 {[%clk 0:08:26]}
31. Bc5 {[%clk 0:30:40]}  h5 {[%clk 0:04:14]} 32. Nb6 {[%clk 0:29:58]}  Rcg8 {[%clk 0:03:53]} 33. Ke2 {[%clk 0:29:22]}  Bd8 {[%clk 0:01:39]}
34. Nf4 {[%clk 0:29:20]}  Rh6 {[%clk 0:02:00]} 35. Nd7 {[%clk 0:29:12]}  Bg5 {[%clk 0:01:56]} 36. Nh3 {[%clk 0:25:45]}  Nc6 {[%clk 0:01:36]}
37. Bxc6 {[%clk 0:25:16]}  bxc6 {[%clk 0:02:04]} 38. Bxa3 {[%clk 0:24:11]}  Rh7 {[%clk 0:01:50]} 39. Nxg5 {[%clk 0:15:54]}  Rxd7 {[%clk 0:02:09]}
40. Nxe6 {[%clk 0:15:22]}  Ra8 {[%clk 0:01:31]} 41. Bd6 {[%clk 0:12:55]}  Rxa2+ {[%clk 0:01:03]} 42. Kd3 {[%clk 0:13:04]}  Rda7 {[%clk 0:00:31]}
43. Rxf5 {[%clk 0:11:41]}  Rb2 {[%clk 0:00:34]} 44. Nc5 {[%clk 0:10:42]}  Kh7 {[%clk 0:00:51]} 45. e6 {[%clk 0:10:25]}  Kg6 {[%clk 0:00:36]}
46. Rf8 {[%clk 0:10:31]}  Raa2 {[%clk 0:00:35]} 47. e7 {[%clk 0:09:41]}  Rd2+ {[%clk 0:00:57]} 48. Kc3 {[%clk 0:09:33]}  Rac2+ {[%clk 0:00:51]}
49. Kb4 {[%clk 0:09:58]}  Rxd4+ {[%clk 0:00:53]} 50. Ka3 {[%clk 0:10:05]} 1-0

[Event "2026 European Womens Championship"]
[Site "Batumi, GE"]
[Date "2026.06.01"]
[Round "7"]
[White "Golsta, Madara"]
[Black "Rodriguez Redondo, Adhara"]
[Result "1/2-1/2"]
[Board "99"]
[TimeControl "5400+30"]
[WhiteFideId "11607386"]
[BlackFideId "32065698"]
[WhiteElo "2023"]
[BlackElo "2200"]
[BlackTitle "WFM"]
[WhiteClock "0:05:38"]
[BlackClock "0:02:35"]
[Variant "Standard"]

1. e4 {[%clk 1:30:57]}  e5 {[%clk 1:30:55]} 2. Nf3 {[%clk 1:31:16]}  Nc6 {[%clk 1:31:19]} 3. Nc3 {[%clk 1:31:29]}  Nf6 {[%clk 1:31:41]}
4. d4 {[%clk 1:31:50]}  exd4 {[%clk 1:32:02]} 5. Nxd4 {[%clk 1:32:10]}  Bb4 {[%clk 1:32:21]} 6. Nxc6 {[%clk 1:32:31]}  bxc6 {[%clk 1:32:47]}
7. Bd3 {[%clk 1:32:49]}  O-O {[%clk 1:33:06]} 8. O-O {[%clk 1:32:58]}  d5 {[%clk 1:33:22]} 9. exd5 {[%clk 1:33:09]}  cxd5 {[%clk 1:33:46]}
10. Bg5 {[%clk 1:33:19]}  Be6 {[%clk 1:33:48]} 11. Qf3 {[%clk 1:30:28]}  h6 {[%clk 1:33:07]} 12. Bxf6 {[%clk 1:28:32]}  Qxf6 {[%clk 1:33:31]}
13. Qxf6 {[%clk 1:28:47]}  gxf6 {[%clk 1:33:55]} 14. Ne2 {[%clk 1:28:04]}  c5 {[%clk 1:31:48]} 15. c3 {[%clk 1:17:42]}  Ba5 {[%clk 1:32:08]}
16. Ng3 {[%clk 1:13:29]}  Bc7 {[%clk 1:15:01]} 17. Nh5 {[%clk 1:07:31]}  f5 {[%clk 1:14:02]} 18. f4 {[%clk 1:07:41]}  c4 {[%clk 1:00:08]}
19. Bc2 {[%clk 1:06:58]}  Bb6+ {[%clk 0:57:39]} 20. Kh1 {[%clk 1:06:57]}  d4 {[%clk 0:56:02]} 21. cxd4 {[%clk 1:05:12]}  Bxd4 {[%clk 0:55:56]}
22. Rab1 {[%clk 1:05:19]}  Rfd8 {[%clk 0:43:44]} 23. Ng3 {[%clk 0:59:13]}  Rd5 {[%clk 0:39:27]} 24. b3 {[%clk 0:51:05]}  Ra5 {[%clk 0:25:35]}
25. bxc4 {[%clk 0:41:58]}  Rxa2 {[%clk 0:23:43]} 26. Nxf5 {[%clk 0:28:09]}  Bf6 {[%clk 0:15:24]} 27. Nxh6+ {[%clk 0:25:57]}  Kf8 {[%clk 0:15:05]}
28. Bb3 {[%clk 0:25:09]}  Ra3 {[%clk 0:13:48]} 29. f5 {[%clk 0:21:31]}  Bd7 {[%clk 0:11:22]} 30. Ng4 {[%clk 0:16:34]}  Kg7 {[%clk 0:09:12]}
31. Rbd1 {[%clk 0:12:40]}  Rxb3 {[%clk 0:08:53]} 32. Rxd7 {[%clk 0:13:02]}  a5 {[%clk 0:08:22]} 33. Nxf6 {[%clk 0:10:45]}  Kxf6 {[%clk 0:08:50]}
34. Rd6+ {[%clk 0:11:03]}  Ke5 {[%clk 0:07:54]} 35. c5 {[%clk 0:09:58]}  a4 {[%clk 0:06:40]} 36. h3 {[%clk 0:02:11]}  a3 {[%clk 0:06:42]}
37. Rdd1 {[%clk 0:01:44]}  Rc8 {[%clk 0:05:31]} 38. Rc1 {[%clk 0:01:39]}  Rc6 {[%clk 0:05:00]} 39. Rf2 {[%clk 0:01:29]}  Kd5 {[%clk 0:03:01]}
40. f6 {[%clk 0:01:38]}  Kd4 {[%clk 0:01:05]} 41. Kh2 {[%clk 0:22:58]}  Rb2 {[%clk 0:27:14]} 42. Rf4+ {[%clk 0:22:51]}  Ke5 {[%clk 0:25:21]}
43. Ra4 {[%clk 0:22:49]}  a2 {[%clk 0:24:17]} 44. Ra1 {[%clk 0:23:12]}  Kxf6 {[%clk 0:22:23]} 45. R1xa2 {[%clk 0:22:53]}  Rxa2 {[%clk 0:22:41]}
46. Rxa2 {[%clk 0:23:19]}  Rxc5 {[%clk 0:23:06]} 47. h4 {[%clk 0:23:31]}  Kg6 {[%clk 0:21:01]} 48. Ra6+ {[%clk 0:21:03]}  f6 {[%clk 0:19:13]}
49. Kh3 {[%clk 0:21:16]}  Rb5 {[%clk 0:18:34]} 50. Ra8 {[%clk 0:19:43]}  Rb3+ {[%clk 0:17:08]} 51. g3 {[%clk 0:20:00]}  Rb4 {[%clk 0:17:04]}
52. Rg8+ {[%clk 0:20:19]}  Kh7 {[%clk 0:15:53]} 53. Rg4 {[%clk 0:20:30]}  Rb5 {[%clk 0:15:16]} 54. Rf4 {[%clk 0:19:50]}  Kg7 {[%clk 0:14:03]}
55. Kg4 {[%clk 0:19:59]}  Ra5 {[%clk 0:13:27]} 56. Rf5 {[%clk 0:19:54]}  Ra3 {[%clk 0:13:26]} 57. Rb5 {[%clk 0:19:03]}  Ra1 {[%clk 0:05:34]}
58. Rb7+ {[%clk 0:15:44]}  Kg6 {[%clk 0:05:40]} 59. Rb4 {[%clk 0:15:22]}  Ra5 {[%clk 0:05:22]} 60. Rf4 {[%clk 0:15:01]}  Rb5 {[%clk 0:05:03]}
61. h5+ {[%clk 0:15:03]}  Kg7 {[%clk 0:05:26]} 62. Kh4 {[%clk 0:14:56]}  Rb1 {[%clk 0:03:59]} 63. Rg4+ {[%clk 0:15:12]}  Kf7 {[%clk 0:02:32]}
64. Rc4 {[%clk 0:12:20]}  Kg7 {[%clk 0:02:49]} 65. Kg4 {[%clk 0:12:25]}  Rb5 {[%clk 0:02:34]} 66. Rf4 {[%clk 0:12:00]}  Ra5 {[%clk 0:02:40]}
67. Rf5 {[%clk 0:10:49]}  Ra4+ {[%clk 0:02:52]} 68. Kh3 {[%clk 0:11:10]}  Ra1 {[%clk 0:02:53]} 69. Rd5 {[%clk 0:09:14]}  Ra4 {[%clk 0:02:33]}
70. g4 {[%clk 0:07:17]}  Rf4 {[%clk 0:01:04]} 71. Rd7+ {[%clk 0:06:52]}  Kh6 {[%clk 0:01:11]} 72. Kg3 {[%clk 0:07:11]}  Rf1 {[%clk 0:01:16]}
73. Rf7 {[%clk 0:07:07]}  Kg5 {[%clk 0:00:35]} 74. Rg7+ {[%clk 0:06:50]}  Kh6 {[%clk 0:01:04]} 75. Rg6+ {[%clk 0:07:10]}  Kh7 {[%clk 0:01:30]}
76. Kh3 {[%clk 0:06:56]}  Rf3+ {[%clk 0:01:28]} 77. Kh4 {[%clk 0:07:02]}  Rf4 {[%clk 0:01:43]} 78. Kg3 {[%clk 0:06:56]}  Rf1 {[%clk 0:02:09]}
79. Kg2 {[%clk 0:05:33]}  Rf4 {[%clk 0:02:35]} 80. Kg3 {[%clk 0:05:38]} 1/2-1/2

[Event "2026 European Womens Championship"]
[Site "Batumi, GE"]
[Date "2026.06.01"]
[Round "7"]
[White "Radikovic, Anamarija"]
[Black "Calzetta Ruiz, Monica"]
[Result "0-1"]
[Board "100"]
[TimeControl "5400+30"]
[WhiteFideId "14546264"]
[BlackFideId "2204185"]
[WhiteElo "1974"]
[BlackElo "2199"]
[WhiteTitle "WFM"]
[BlackTitle "WGM"]
[WhiteClock "0:08:43"]
[BlackClock "0:18:52"]
[Variant "Standard"]

1. d4 {[%clk 1:30:56]}  d5 {[%clk 1:30:37]} 2. c4 {[%clk 1:31:20]}  e6 {[%clk 1:31:02]} 3. Nc3 {[%clk 1:31:43]}  c5 {[%clk 1:31:24]}
4. cxd5 {[%clk 1:32:05]}  exd5 {[%clk 1:31:04]} 5. Nf3 {[%clk 1:32:25]}  Nc6 {[%clk 1:31:25]} 6. g3 {[%clk 1:32:40]}  Nf6 {[%clk 1:31:45]}
7. Bg2 {[%clk 1:33:01]}  cxd4 {[%clk 1:31:52]} 8. Nxd4 {[%clk 1:33:24]}  Bc5 {[%clk 1:32:15]} 9. Nxc6 {[%clk 1:33:39]}  bxc6 {[%clk 1:32:39]}
10. O-O {[%clk 1:33:56]}  O-O {[%clk 1:32:50]} 11. Na4 {[%clk 1:34:02]}  Bb6 {[%clk 1:32:41]} 12. Qc2 {[%clk 1:33:04]}  Bd7 {[%clk 1:29:33]}
13. Nxb6 {[%clk 1:29:34]}  axb6 {[%clk 1:29:53]} 14. b4 {[%clk 1:12:12]}  Re8 {[%clk 1:28:16]} 15. e3 {[%clk 1:07:06]}  h5 {[%clk 1:05:07]}
16. h3 {[%clk 1:04:43]}  Ne4 {[%clk 1:04:11]} 17. Bb2 {[%clk 0:59:19]}  Qg5 {[%clk 1:03:11]} 18. Kh2 {[%clk 0:52:27]}  Qg6 {[%clk 1:01:48]}
19. Qd1 {[%clk 0:49:39]}  h4 {[%clk 0:57:53]} 20. Qe1 {[%clk 0:41:19]}  hxg3+ {[%clk 0:37:58]} 21. fxg3 {[%clk 0:39:19]}  c5 {[%clk 0:37:52]}
22. a3 {[%clk 0:37:23]}  Rad8 {[%clk 0:29:05]} 23. Rd1 {[%clk 0:35:04]}  d4 {[%clk 0:22:13]} 24. exd4 {[%clk 0:24:53]}  Ng5 {[%clk 0:20:41]}
25. Qc3 {[%clk 0:20:12]}  cxb4 {[%clk 0:20:07]} 26. Qxb4 {[%clk 0:18:25]}  Bxh3 {[%clk 0:19:55]} 27. Rd2 {[%clk 0:09:33]}  Bxg2 {[%clk 0:19:29]}
28. Kxg2 {[%clk 0:08:43]}  Qe4+ {[%clk 0:18:52]} 0-1

[Event "2026 European Womens Championship"]
[Site "Batumi, GE"]
[Date "2026.06.01"]
[Round "7"]
[White "Ptacnikova, Lenka"]
[Black "Gvetadze, Sofio"]
[Result "0-1"]
[Board "101"]
[TimeControl "5400+30"]
[WhiteFideId "305650"]
[BlackFideId "13601440"]
[WhiteElo "2126"]
[BlackElo "2311"]
[WhiteTitle "WGM"]
[BlackTitle "IM"]
[WhiteClock "0:17:52"]
[BlackClock "0:39:59"]
[Variant "Standard"]

1. c4 {[%clk 1:30:56]}  Nf6 {[%clk 1:30:36]} 2. Nf3 {[%clk 1:30:59]}  g6 {[%clk 1:30:21]} 3. d4 {[%clk 1:31:07]}  Bg7 {[%clk 1:29:44]}
4. g3 {[%clk 1:31:22]}  c5 {[%clk 1:28:39]} 5. Bg2 {[%clk 1:30:46]}  O-O {[%clk 1:28:44]} 6. O-O {[%clk 1:29:41]}  Na6 {[%clk 1:27:41]}
7. Nc3 {[%clk 1:28:59]}  d6 {[%clk 1:27:44]} 8. h3 {[%clk 1:17:46]}  Bd7 {[%clk 1:25:16]} 9. Kh2 {[%clk 1:13:29]}  Rc8 {[%clk 1:23:15]}
10. b3 {[%clk 1:12:21]}  Qa5 {[%clk 1:17:58]} 11. Bd2 {[%clk 1:07:00]}  cxd4 {[%clk 1:13:57]} 12. Nd5 {[%clk 1:03:03]}  Qd8 {[%clk 1:13:10]}
13. Nxf6+ {[%clk 1:02:53]}  Bxf6 {[%clk 1:13:33]} 14. Bh6 {[%clk 1:03:07]}  Re8 {[%clk 1:13:01]} 15. Nxd4 {[%clk 0:59:59]}  Nc5 {[%clk 1:13:00]}
16. Qd2 {[%clk 0:52:37]}  Qb6 {[%clk 1:09:35]} 17. Rad1 {[%clk 0:51:13]}  a5 {[%clk 1:08:50]} 18. Nc2 {[%clk 0:44:22]}  Bc6 {[%clk 1:08:10]}
19. f3 {[%clk 0:43:10]}  Qa6 {[%clk 1:06:27]} 20. Nd4 {[%clk 0:40:22]}  b5 {[%clk 0:58:30]} 21. Nxc6 {[%clk 0:40:13]}  Rxc6 {[%clk 0:58:52]}
22. f4 {[%clk 0:39:14]}  Rc7 {[%clk 0:58:15]} 23. cxb5 {[%clk 0:33:36]}  Qxb5 {[%clk 0:57:50]} 24. f5 {[%clk 0:33:08]}  Nd7 {[%clk 0:55:06]}
25. Bd5 {[%clk 0:32:16]}  Ne5 {[%clk 0:54:17]} 26. g4 {[%clk 0:27:47]}  Qb4 {[%clk 0:45:27]} 27. Rc1 {[%clk 0:19:45]}  Rxc1 {[%clk 0:43:59]}
28. Rxc1 {[%clk 0:19:47]}  Nxg4+ {[%clk 0:38:36]} 29. hxg4 {[%clk 0:20:10]}  Qxg4 {[%clk 0:38:59]} 30. fxg6 {[%clk 0:16:44]}  Be5+ {[%clk 0:39:08]}
31. Kh1 {[%clk 0:17:08]}  Qh3+ {[%clk 0:39:23]} 32. Kg1 {[%clk 0:17:34]}  Bh2+ {[%clk 0:39:39]} 33. Kf2 {[%clk 0:17:52]}  Qg3+ {[%clk 0:39:59]} 0-1

[Event "2026 European Womens Championship"]
[Site "Batumi, GE"]
[Date "2026.06.01"]
[Round "7"]
[White "Aghaverdiyeva, Maryam"]
[Black "Urh, Zala"]
[Result "1/2-1/2"]
[Board "102"]
[TimeControl "5400+30"]
[WhiteFideId "13452509"]
[BlackFideId "14611481"]
[WhiteElo "2103"]
[BlackElo "2263"]
[WhiteTitle "WFM"]
[BlackTitle "WIM"]
[WhiteClock "0:15:52"]
[BlackClock "0:04:06"]
[Variant "Standard"]

1. e4 {[%clk 1:30:42]}  c5 {[%clk 1:30:54]} 2. Nf3 {[%clk 1:31:02]}  Nc6 {[%clk 1:31:19]} 3. d4 {[%clk 1:30:59]}  cxd4 {[%clk 1:31:43]}
4. Nxd4 {[%clk 1:31:13]}  Nf6 {[%clk 1:32:07]} 5. Nc3 {[%clk 1:31:24]}  e5 {[%clk 1:32:30]} 6. Ndb5 {[%clk 1:31:25]}  d6 {[%clk 1:32:42]}
7. Nd5 {[%clk 1:31:22]}  Nxd5 {[%clk 1:33:00]} 8. exd5 {[%clk 1:31:41]}  Ne7 {[%clk 1:33:24]} 9. c4 {[%clk 1:31:46]}  Ng6 {[%clk 1:33:28]}
10. Qa4 {[%clk 1:31:44]}  Bd7 {[%clk 1:33:19]} 11. Qb4 {[%clk 1:31:59]}  Qb8 {[%clk 1:33:43]} 12. h4 {[%clk 1:32:12]}  h5 {[%clk 1:22:10]}
13. g3 {[%clk 1:31:42]}  Be7 {[%clk 1:11:52]} 14. Be2 {[%clk 1:31:57]}  f5 {[%clk 1:04:34]} 15. Bg5 {[%clk 1:26:07]}  a6 {[%clk 1:00:33]}
16. Bxe7 {[%clk 1:25:23]}  Kxe7 {[%clk 1:00:16]} 17. Nc3 {[%clk 1:23:49]}  Qc7 {[%clk 0:58:00]} 18. O-O {[%clk 1:22:36]}  Rag8 {[%clk 0:48:34]}
19. Rfe1 {[%clk 0:58:00]}  Kf7 {[%clk 0:39:54]} 20. Bd3 {[%clk 0:39:43]}  Rh6 {[%clk 0:30:58]} 21. Kg2 {[%clk 0:26:56]}  Ne7 {[%clk 0:23:58]}
22. Ne2 {[%clk 0:21:49]}  g5 {[%clk 0:23:16]} 23. hxg5 {[%clk 0:19:43]}  Rxg5 {[%clk 0:23:25]} 24. Rh1 {[%clk 0:17:54]}  h4 {[%clk 0:12:35]}
25. Qd2 {[%clk 0:17:26]}  Rgg6 {[%clk 0:12:31]} 26. Rac1 {[%clk 0:13:11]}  b6 {[%clk 0:12:34]} 27. b4 {[%clk 0:11:51]}  Qc8 {[%clk 0:11:51]}
28. Rh2 {[%clk 0:08:31]}  Qh8 {[%clk 0:11:36]} 29. Rch1 {[%clk 0:08:42]}  Kg7 {[%clk 0:09:33]} 30. Qe3 {[%clk 0:08:02]}  Nc8 {[%clk 0:06:22]}
31. c5 {[%clk 0:06:52]}  bxc5 {[%clk 0:04:59]} 32. bxc5 {[%clk 0:07:16]}  Qg8 {[%clk 0:02:04]} 33. Rxh4 {[%clk 0:02:52]}  Rxh4 {[%clk 0:01:42]}
34. Rxh4 {[%clk 0:03:15]}  Qxd5+ {[%clk 0:02:08]} 35. Kh2 {[%clk 0:01:53]}  dxc5 {[%clk 0:01:43]} 36. Nc3 {[%clk 0:01:00]}  Qd6 {[%clk 0:02:08]}
37. Qf3 {[%clk 0:00:35]}  Rh6 {[%clk 0:01:25]} 38. Qd5 {[%clk 0:00:33]}  e4 {[%clk 0:00:36]} 39. Qxd6 {[%clk 0:00:36]}  Rxd6 {[%clk 0:01:05]}
40. Be2 {[%clk 0:00:36]}  Ne7 {[%clk 0:00:43]} 41. Kg2 {[%clk 0:24:38]}  a5 {[%clk 0:21:35]} 42. Rh1 {[%clk 0:22:22]}  Bc6 {[%clk 0:15:59]}
43. Rd1 {[%clk 0:20:31]}  Rxd1 {[%clk 0:13:24]} 44. Nxd1 {[%clk 0:18:52]}  Kf6 {[%clk 0:11:54]} 45. Kf1 {[%clk 0:18:59]}  Ke5 {[%clk 0:10:24]}
46. Ke1 {[%clk 0:18:16]}  Kd4 {[%clk 0:08:56]} 47. Kd2 {[%clk 0:18:30]}  Bd5 {[%clk 0:05:33]} 48. a3 {[%clk 0:18:01]}  Bc4 {[%clk 0:05:49]}
49. Bh5 {[%clk 0:18:13]}  Bd3 {[%clk 0:04:08]} 50. Bf7 {[%clk 0:18:35]}  c4 {[%clk 0:03:55]} 51. Be6 {[%clk 0:18:53]}  Ke5 {[%clk 0:03:44]}
52. Bf7 {[%clk 0:19:03]}  Kf6 {[%clk 0:03:12]} 53. Be8 {[%clk 0:19:09]}  Nc8 {[%clk 0:02:23]} 54. Kc3 {[%clk 0:18:49]}  Nd6 {[%clk 0:02:29]}
55. Bd7 {[%clk 0:19:12]}  Kg5 {[%clk 0:02:20]} 56. Kd4 {[%clk 0:18:14]}  f4 {[%clk 0:02:34]} 57. Ke5 {[%clk 0:17:21]}  fxg3 {[%clk 0:02:58]}
58. fxg3 {[%clk 0:17:43]}  Nf7+ {[%clk 0:03:16]} 59. Kd4 {[%clk 0:17:55]}  Kf6 {[%clk 0:02:36]} 60. Ne3 {[%clk 0:16:11]}  Ng5 {[%clk 0:01:32]}
61. Bb5 {[%clk 0:15:05]}  Nf3+ {[%clk 0:01:06]} 62. Kc3 {[%clk 0:15:15]}  Ng1 {[%clk 0:01:22]} 63. Bxc4 {[%clk 0:13:47]}  Ne2+ {[%clk 0:01:45]}
64. Kd2 {[%clk 0:14:07]}  Bxc4 {[%clk 0:01:37]} 65. Nxc4 {[%clk 0:14:32]}  Nxg3 {[%clk 0:02:04]} 66. Ke3 {[%clk 0:14:04]}  a4 {[%clk 0:02:21]}
67. Kf4 {[%clk 0:14:20]}  Ne2+ {[%clk 0:02:46]} 68. Kxe4 {[%clk 0:14:45]}  Nc3+ {[%clk 0:03:13]} 69. Kd3 {[%clk 0:15:05]}  Nb5 {[%clk 0:03:39]}
70. Nb2 {[%clk 0:15:27]}  Nxa3 {[%clk 0:04:06]} 71. Nxa4 {[%clk 0:15:52]}  Ke5 {[%clk 0:04:04]} 1/2-1/2

[Event "2026 European Womens Championship"]
[Site "Batumi, GE"]
[Date "2026.06.01"]
[Round "7"]
[White "Tsetskhladze, Mariam"]
[Black "Mkrtchyan, Anahit H."]
[Result "0-1"]
[Board "103"]
[TimeControl "5400+30"]
[WhiteFideId "13623834"]
[BlackFideId "13314858"]
[WhiteElo "2234"]
[BlackElo "2107"]
[WhiteTitle "WFM"]
[WhiteClock "0:00:53"]
[BlackClock "0:01:26"]
[Variant "Standard"]

1. e4 {[%clk 1:30:27]}  c5 {[%clk 1:30:49]} 2. Nf3 {[%clk 1:30:52]}  e6 {[%clk 1:31:14]} 3. c3 {[%clk 1:28:24]}  Nf6 {[%clk 1:27:20]}
4. e5 {[%clk 1:28:43]}  Nd5 {[%clk 1:27:46]} 5. Bc4 {[%clk 1:28:05]}  Nc6 {[%clk 1:22:55]} 6. d4 {[%clk 1:27:53]}  d6 {[%clk 1:20:45]}
7. O-O {[%clk 1:21:23]}  dxe5 {[%clk 1:16:35]} 8. dxe5 {[%clk 1:21:04]}  Be7 {[%clk 1:16:04]} 9. Qe2 {[%clk 1:20:13]}  Qc7 {[%clk 1:10:50]}
10. Rd1 {[%clk 1:16:52]}  O-O {[%clk 0:58:40]} 11. h4 {[%clk 1:07:07]}  Rd8 {[%clk 0:44:37]} 12. h5 {[%clk 0:57:54]}  h6 {[%clk 0:36:53]}
13. Bd3 {[%clk 0:47:10]}  Bd7 {[%clk 0:32:18]} 14. a3 {[%clk 0:43:04]}  b5 {[%clk 0:28:39]} 15. Bc2 {[%clk 0:28:17]}  Be8 {[%clk 0:25:46]}
16. Nbd2 {[%clk 0:25:06]}  c4 {[%clk 0:22:20]} 17. Nf1 {[%clk 0:22:57]}  Bc5 {[%clk 0:19:09]} 18. a4 {[%clk 0:19:27]}  Na5 {[%clk 0:12:04]}
19. axb5 {[%clk 0:18:14]}  Nb3 {[%clk 0:11:09]} 20. Bxb3 {[%clk 0:16:08]}  cxb3 {[%clk 0:11:34]} 21. Nd4 {[%clk 0:16:01]}  Bxd4 {[%clk 0:08:17]}
22. Rxd4 {[%clk 0:16:11]}  Rab8 {[%clk 0:07:31]} 23. Bd2 {[%clk 0:11:53]}  Ne7 {[%clk 0:06:22]} 24. Rxd8 {[%clk 0:11:48]}  Rxd8 {[%clk 0:05:43]}
25. c4 {[%clk 0:11:11]}  Rd4 {[%clk 0:04:43]} 26. Ne3 {[%clk 0:10:18]}  Re4 {[%clk 0:02:54]} 27. Bc3 {[%clk 0:10:34]}  Nf5 {[%clk 0:01:13]}
28. Qf3 {[%clk 0:07:28]}  Rh4 {[%clk 0:00:39]} 29. Nxf5 {[%clk 0:07:13]}  exf5 {[%clk 0:01:03]} 30. Qa8 {[%clk 0:04:37]}  Qd7 {[%clk 0:01:29]}
31. Qxa7 {[%clk 0:04:41]}  Rxc4 {[%clk 0:00:36]} 32. b6 {[%clk 0:00:57]}  Qd5 {[%clk 0:00:34]} 33. b7 {[%clk 0:00:41]}  Rg4 {[%clk 0:00:47]}
34. Kf1 {[%clk 0:00:36]}  Bb5+ {[%clk 0:01:05]} 35. Ke1 {[%clk 0:00:53]}  Re4+ {[%clk 0:01:26]} 0-1

[Event "2026 European Womens Championship"]
[Site "Batumi, GE"]
[Date "2026.06.01"]
[Round "7"]
[White "Liashkevich, Lizaveta"]
[Black "Mamedjarova, Turkan"]
[Result "0-1"]
[Board "104"]
[TimeControl "5400+30"]
[WhiteFideId "13518658"]
[BlackFideId "13402005"]
[WhiteElo "2079"]
[BlackElo "2222"]
[WhiteTitle "WFM"]
[BlackTitle "WGM"]
[WhiteClock "0:15:46"]
[BlackClock "0:11:02"]
[Variant "Standard"]

1. e4 {[%clk 1:30:57]}  e5 {[%clk 1:29:10]} 2. Nf3 {[%clk 1:31:18]}  Nc6 {[%clk 1:29:35]} 3. Bb5 {[%clk 1:31:39]}  a6 {[%clk 1:30:01]}
4. Ba4 {[%clk 1:32:04]}  Nf6 {[%clk 1:30:11]} 5. O-O {[%clk 1:31:51]}  Be7 {[%clk 1:29:34]} 6. Re1 {[%clk 1:31:44]}  b5 {[%clk 1:29:50]}
7. Bb3 {[%clk 1:32:08]}  d6 {[%clk 1:30:10]} 8. c3 {[%clk 1:32:13]}  O-O {[%clk 1:28:46]} 9. h3 {[%clk 1:32:29]}  Nb8 {[%clk 1:28:53]}
10. d4 {[%clk 1:30:06]}  Nbd7 {[%clk 1:28:38]} 11. Bc2 {[%clk 1:28:30]}  Re8 {[%clk 1:28:04]} 12. Nbd2 {[%clk 1:27:54]}  Bb7 {[%clk 1:28:03]}
13. Nf1 {[%clk 1:27:29]}  Bf8 {[%clk 1:26:32]} 14. Ng3 {[%clk 1:27:19]}  g6 {[%clk 1:26:51]} 15. a4 {[%clk 1:25:48]}  c5 {[%clk 1:25:38]}
16. d5 {[%clk 1:25:39]}  c4 {[%clk 1:25:52]} 17. Bg5 {[%clk 1:20:32]}  h6 {[%clk 1:24:46]} 18. Be3 {[%clk 1:20:31]}  Nc5 {[%clk 1:24:48]}
19. Qd2 {[%clk 1:17:08]}  Kh7 {[%clk 1:23:09]} 20. Ra2 {[%clk 1:02:31]}  Qc7 {[%clk 1:18:07]} 21. Kh1 {[%clk 0:50:29]}  Reb8 {[%clk 1:16:14]}
22. Nh2 {[%clk 0:45:19]}  Bc8 {[%clk 0:57:59]} 23. Rf1 {[%clk 0:32:29]}  Bg7 {[%clk 0:41:03]} 24. f4 {[%clk 0:30:43]}  Bd7 {[%clk 0:40:31]}
25. Rf3 {[%clk 0:15:42]}  exf4 {[%clk 0:32:47]} 26. Rxf4 {[%clk 0:15:18]}  Be8 {[%clk 0:32:03]} 27. Rh4 {[%clk 0:12:42]}  h5 {[%clk 0:29:03]}
28. Nf3 {[%clk 0:04:59]}  Nd3 {[%clk 0:19:56]} 29. Bxd3 {[%clk 0:04:15]}  cxd3 {[%clk 0:20:25]} 30. Qxd3 {[%clk 0:04:15]}  bxa4 {[%clk 0:20:37]}
31. e5 {[%clk 0:03:02]}  dxe5 {[%clk 0:20:02]} 32. Nxh5 {[%clk 0:02:11]}  Nxh5 {[%clk 0:20:16]} 33. Rxh5+ {[%clk 0:02:35]}  Kg8 {[%clk 0:20:44]}
34. d6 {[%clk 0:02:03]}  Qb7 {[%clk 0:19:05]} 35. Rh4 {[%clk 0:01:24]}  Qb3 {[%clk 0:18:30]} 36. Ra3 {[%clk 0:00:55]}  Qxb2 {[%clk 0:18:21]}
37. c4 {[%clk 0:00:44]}  Bc6 {[%clk 0:17:56]} 38. Nd2 {[%clk 0:00:45]}  Re8 {[%clk 0:12:14]} 39. Bc5 {[%clk 0:00:42]}  e4 {[%clk 0:11:17]}
40. Nxe4 {[%clk 0:00:38]}  Qc1+ {[%clk 0:11:07]} 41. Kh2 {[%clk 0:01:00]}  Be5+ {[%clk 0:08:54]} 42. g3 {[%clk 0:25:38]}  Rab8 {[%clk 0:34:13]}
43. Ra2 {[%clk 0:20:32]}  Rb3 {[%clk 0:30:09]} 44. Qd2 {[%clk 0:16:29]}  Qxd2+ {[%clk 0:23:26]} 45. Rxd2 {[%clk 0:16:51]}  Bxe4 {[%clk 0:14:08]}
46. Rxe4 {[%clk 0:15:38]}  Bxg3+ {[%clk 0:14:33]} 47. Kg2 {[%clk 0:16:03]}  Rxe4 {[%clk 0:14:47]} 48. d7 {[%clk 0:16:16]}  Bh4 {[%clk 0:13:01]}
49. Bf2 {[%clk 0:14:55]}  Bd8 {[%clk 0:12:24]} 50. c5 {[%clk 0:15:21]}  a3 {[%clk 0:11:35]} 51. c6 {[%clk 0:15:46]}  Rb2 {[%clk 0:11:02]} 0-1